[Event "Hungarian Championship Women 2022"]
[Site "Budapest"]
[Date "2022.12.12"]
[Round "8.4"]
[White "Mihok-Juhasz, Barbara"]
[Black "Terbe, Julianna"]
[Result "1/2-1/2"]
[ECO "B31"]
[WhiteElo "2206"]
[BlackElo "2282"]
[Annotator "TA"]
[PlyCount "129"]
[EventDate "2022.12.03"]
[EventType "tourn"]
[EventCountry "HUN"]
[SourceTitle "playchess.com"]
[Source "ChessBase"]
[SourceQuality "1"]
[TimeControl "40/5400+30:1800+30"]

{[%evp 9,129,33,23,39,27,15,27,1,21,0,0,0,65,46,51,30,37,17,41,0,0,-64,-58,-72,-68,-60,-66,-56,-18,-29,-20,-31,-12,-5,16,-7,33,8,13,12,12,0,0,0,0,0,52,54,61,57,64,32,42,13,13,10,13,0,0,6,33,37,39,14,36,0,0,-106,0,0,0,-26,0,0,314,14,44,31,29,38,213,195,232,74,74,0,78,86,223,220,415,407,894,0,0,0,0,0,0,0,0,0,0,0,0,0,0,0,0,0,0,0,0,0,0,0,0,0,0,0,0,0]} 1. e4 {[%emt 0:00:35]} c5 {[%emt 0:00:35]} 2. Nf3 {[%emt 0:00:07]} Nc6 {[%emt 0:00:04]} 3. Bb5 {[%emt 0:00:04]} g6 {[%emt 0:00:24]} 4. Bxc6 {[%emt 0:00:13]} dxc6 {[%emt 0:00:22]} 5. d3 {[%emt 0:00:05]} Qc7 {[%emt 0:00:06]} 6. h3 {[%emt 0:00:49] B31: Sicilian: 2...Nc6 3 Bb5 g6.} e5 {[%emt 0:00:05]} 7. a3 {[%emt 0:00:20] [#]} Nf6 $146 {[%emt 0:01:08]} ({Predecessor:} 7... f6 8. Be3 Nh6 9. Qd2 Nf7 10. Qc3 b6 11. b4 cxb4 12. axb4 Bd6 13. Nbd2 Be6 {1-0 (36) Santos Latasa,J (2672)-Serarols Mabras,B (2357) Linares 2022}) 8. O-O {[%emt 0:01:19] White has an edge.} h6 {[%emt 0:01:11]} 9. b4 {[%emt 0:04:01]} cxb4 {[%emt 0:03:57]} 10. axb4 {[%emt 0:00:06]} Bg7 {[%emt 0:00:09]} (10... Bxb4 $11 11. Bb2 Bd6) 11. Bb2 $14 {[%emt 0:13:49]} Nh5 {[%emt 0:00:33]} 12. Nbd2 {[%emt 0:01:11][%cal Bb1d2,Bd2c4,Bc4d6][%mdl 32]} O-O {[%emt 0:08:35]} 13. Nc4 {[%emt 0:13:20]} Re8 {[%emt 0:04:21]} 14. d4 {[%emt 0:21:03]} exd4 {[%emt 0:02:28]} 15. Bxd4 {[%emt 0:00:07]} (15. e5 $1 $11) 15... Rxe4 $15 {[%emt 0:08:35]} 16. Bxg7 {[%emt 0:00:23]} Nxg7 {[%emt 0:07:10]} 17. Nd6 {[%emt 0:00:18]} Re6 {[%emt 0:03:09]} (17... Rxb4 18. Qd2 c5 19. Rfe1 $16) 18. Nc4 {[%emt 0:00:30]} b5 {[%emt 0:17:11]} 19. Ne3 {[%emt 0:13:18]} Rd6 {[%emt 0:07:18]} 20. Qe1 {[%emt 0:01:54]} c5 {[%emt 0:11:43]} 21. Qc3 $1 {[%emt 0:01:32]} c4 {[%emt 0:00:32]} 22. Qe5 {[%emt 0:02:09]} (22. Rad1 $5 {[%cal Rc3e5]}) 22... Be6 {[%emt 0:04:22]} 23. Nd4 {[%emt 0:05:08]} Rd7 $1 {[%emt 0:09:06]} 24. Qxc7 {[%emt 0:03:44]} (24. Qxb5 $2 Rxd4 25. Qa5 Qxa5 26. Rxa5 c3 $19) 24... Rxc7 {[%emt 0:00:01]} 25. c3 {[%emt 0:00:06]} Rb7 {[%emt 0:01:40]} 26. Ra5 {[%emt 0:03:33]} Bd7 {[%emt 0:00:20]} 27. Rfa1 {[%emt 0:01:25]} Ne6 {[%emt 0:01:33]} ({Black should play} 27... Ne8 $11) 28. Nxe6 $14 {[%emt 0:00:18]} fxe6 {[%emt 0:01:51]} 29. Ng4 {[%emt 0:01:23]} Kg7 {[%emt 0:00:04]} 30. f4 {[%emt 0:01:53][%mdl 1024] White has compensation.} Bc6 {[%emt 0:01:16]} 31. Kf2 {[%emt 0:03:46]} g5 {[%emt 0:02:27]} 32. g3 {[%emt 0:00:57]} Be4 {[%emt 0:01:38]} 33. Ne5 {[%emt 0:01:12]} gxf4 {[%emt 0:01:15]} 34. gxf4 {[%emt 0:00:06]} Bf5 {[%emt 0:00:06]} 35. h4 {[%emt 0:01:08]} (35. Nc6 {simplifies} Bxh3 36. Rxa7 Raxa7 37. Rxa7 Rxa7 38. Nxa7 e5 39. Nxb5 Kf6 40. Nd6) 35... Kf6 {[%emt 0:00:05]} 36. Ke3 {[%emt 0:05:33]} Bc2 {[%emt 0:01:42]} 37. Ra6 {[%emt 0:00:44]} Rg7 {[%emt 0:00:27]} (37... h5 {keeps more tension.} 38. Rg1 Bf5 39. Rg5 Rd8) 38. R1a2 {[%emt 0:00:40] [#]} (38. R1a5 $11 {remains equal.}) 38... Bb1 {[%emt 0:01:02]} (38... Rg3+ $1 $17 39. Kd4 Rd8+ 40. Kc5 Rd5+ 41. Kc6 Be4 42. Nd7+ Kf5) 39. Ra1 $11 {[%emt 0:00:26]} Bc2 {[%emt 0:00:04]} 40. Rd6 {[%emt 0:00:00]} Rg3+ {[%emt 0:00:00]} 41. Kd4 {[%emt 0:00:46]} Ba4 $2 {[%emt 0:06:49][%mdl 8192] [#]} (41... Kf5 $11 {and Black stays safe.}) 42. Rd7 $2 {[%emt 0:03:03]} (42. f5 $1 $18) 42... Rg7 {[%emt 0:01:20]} (42... Rf8 {seems wilder.} 43. Rxa7 Rd8+ 44. Kc5 Kf5) 43. Rxg7 {[%emt 0:00:55]} (43. Rg1 {feels hotter.} Rxd7+ 44. Nxd7+ Kf5 45. Ke3) 43... Kxg7 $14 {[%emt 0:00:43][%mdl 4096] Endgame KRB-KRN} 44. Rg1+ {[%emt 0:03:13]} Kf6 $2 {[%emt 0:00:17]} (44... Kh7 $14) 45. Rg6+ $18 {[%emt 0:00:11]} Kf5 {[%emt 0:00:24]} 46. Rxh6 $2 {[%emt 0:00:13]} (46. Ke3 $18 {is the precise move to win.} Rh8 47. Rg7) 46... Kxf4 $16 {[%emt 0:01:45] Hoping for ...Rd8+.} 47. Rf6+ {[%emt 0:02:55]} (47. Rxe6 Kf5 48. Re7 Rh8 $11) 47... Kg3 {[%emt 0:00:07]} 48. h5 {[%emt 0:01:47][%cal Bh4h5,Bh5h6][%mdl 32] White is more active.} ({Much worse is} 48. Rxe6 Rh8 $11) 48... Kh4 {[%emt 0:03:32]} (48... a5 $16) 49. h6 $18 {[%emt 0:03:06][%cal Oh6h7] Strongly threatening h7!} ({Worse is} 49. Rxe6 Rd8+ 50. Kc5 Kxh5 $11) 49... Rd8+ $2 {[%emt 0:00:28]} (49... Kg5 50. Rxe6 Kf5) 50. Ke3 {[%emt 0:01:00]} Kg5 {[%emt 0:01:09] Against h7} (50... Bc2 $142 51. Rf4+ (51. Rxe6 Kh5 $16) 51... Kh3) 51. Nf7+ $2 {[%emt 0:13:39]} ({Weaker is} 51. Rxe6 Kf5 52. Re7 Kf6 $14) (51. Rf2 $18) 51... Kxf6 $11 {[%emt 0:00:06] The position is equal.} 52. Nxd8 {[%emt 0:00:02] KB-KN} Kg6 {[%emt 0:02:56]} 53. Nxe6 {[%emt 0:00:33] And now Kd4 would win.} Kxh6 {[%emt 0:00:03]} 54. Kd4 {[%emt 0:00:28] Kc5 is the strong threat.} Kg6 {[%emt 0:00:10]} 55. Nd8 {[%emt 0:01:57]} Kf5 {[%emt 0:02:33]} 56. Nc6 {[%emt 0:00:13]} Kf4 {[%emt 0:03:13]} 57. Nxa7 {[%emt 0:00:38]} Kf3 {[%emt 0:00:05]} 58. Nc8 {[%emt 0:02:35]} Ke2 {[%emt 0:00:22]} 59. Nb6 {[%emt 0:01:48] Intending Nxa4 and mate.} Bb3 {[%emt 0:02:06]} 60. Kc5 {[%emt 0:01:23]} Kd3 {[%emt 0:00:25]} 61. Kxb5 {[%emt 0:00:07] Black must now prevent Nd5.} Kxc3 {[%emt 0:00:06]} 62. Nxc4 {[%emt 0:00:46]} Bxc4+ {[%emt 0:00:06]} 63. Kc5 {[%emt 0:00:02]} Kb3 {[%emt 0:00:06]} 64. b5 {[%emt 0:00:04]} Bxb5 {[%emt 0:00:02]} 65. Kxb5 {[%emt 0:00:05] Weighted Error Value: White=0.35/Black=0.34} 1/2-1/2

[Event "Hungarian Championship Women 2022"]
[Site "Budapest"]
[Date "2022.12.12"]
[Round "8.5"]
[White "Szente Varga, Fruzsina"]
[Black "Erdos, Boglarka"]
[Result "0-1"]
[ECO "C47"]
[WhiteElo "2075"]
[BlackElo "2180"]
[Annotator "TA"]
[PlyCount "156"]
[EventDate "2022.12.03"]
[EventType "tourn"]
[EventCountry "HUN"]
[SourceTitle "playchess.com"]
[Source "ChessBase"]
[SourceQuality "1"]
[TimeControl "40/5400+30:1800+30"]

{[%evp 11,156,-27,-27,-22,-23,-21,0,0,0,0,14,-4,26,22,19,-29,-25,-22,-19,-33,-37,-40,-35,-31,13,23,49,0,0,0,13,20,9,23,16,0,0,0,0,0,5,-28,0,0,0,0,-2,-11,-8,-63,0,0,0,0,0,0,55,66,74,8,0,-61,-58,-160,-106,-243,-241,-247,-183,-231,-126,-203,0,-216,-182,-199,-136,-142,-123,-170,-154,-146,-156,-422,-119,-136,-143,-129,-142,-166,-154,-207,-197,-188,-127,-127,-127,-183,-191,-175,-181,-166,-164,-227,-223,-223,-215,-977,-920,-1973,-1936,-29949,-29952,-29951,-29952,-29951,-29953,-29955,-29956,-29961,-29961,-29962,-29963,-29962,-29964,-29964,-29963,-29960,-29962,-12843,-12793,-11149,-10893,-6862,-5185,-2679,-1249,-29986,-29987,-29985,-29986,-29982,-29980,-29980,-29981,-29980,-29981]} 1. e4 {[%emt 0:00:33]} e5 {[%emt 0:00:34]} 2. Nf3 {[%emt 0:00:05]} Nc6 {[%emt 0:00:05]} 3. Nc3 {[%emt 0:00:08]} Nf6 {[%emt 0:00:08]} 4. d4 {[%emt 0:00:09]} exd4 {[%emt 0:00:17]} 5. Nd5 {[%emt 0:00:16]} Nb4 {[%emt 0:00:58]} 6. Nxf6+ {[%emt 0:00:21]} Qxf6 {[%emt 0:00:10]} 7. a3 {[%emt 0:00:17] C47: Scotch Four Knights and Four Knights with 4 g3.} Nc6 {[%emt 0:01:50]} 8. Bd3 {[%emt 0:00:24]} h6 {[%emt 0:11:39] Against Bg5} 9. O-O {[%emt 0:00:21][%cal Oe4e5] The position is equal.} d6 {[%emt 0:03:47] Prevents e5.} 10. Bb5 {[%emt 0:04:24]} Bd7 {[%emt 0:19:43]} 11. Bxc6 {[%emt 0:02:22]} Bxc6 {[%emt 0:00:41] [#]} 12. Nxd4 $146 {[%emt 0:02:17]} ({Predecessor:} 12. Re1 O-O-O 13. Nxd4 Bd7 14. c4 g5 15. Nb5 Bxb5 16. cxb5 Bg7 17. Qa4 Qd4 18. Qa5 {½-½ (30) Gradowski,G-Shoup,K GER corr 1997}) 12... Bd7 {[%emt 0:00:54]} 13. f4 {[%emt 0:02:06]} (13. Qd3 $142) 13... O-O-O $11 {[%emt 0:05:04]} 14. Qd3 {[%emt 0:01:58]} c5 {[%emt 0:14:00]} 15. Nf3 {[%emt 0:04:55]} Bc6 {[%emt 0:02:06]} 16. Rb1 {[%emt 0:21:33]} Qe7 {[%emt 0:08:05]} 17. Re1 {[%emt 0:00:59]} g6 {[%emt 0:00:52]} (17... Re8 $5 {[%cal Rc6e4]}) 18. b4 {[%emt 0:00:30]} b6 {[%emt 0:04:16]} 19. a4 {[%emt 0:10:10]} (19. Bb2 $14 Rg8 20. Rbd1) 19... Bg7 {[%emt 0:00:51]} 20. a5 {[%emt 0:04:00]} Rhe8 {[%emt 0:04:46][%cal Rc6e4]} 21. axb6 {[%emt 0:00:47]} axb6 {[%emt 0:00:16][%cal Rc6e4]} 22. bxc5 {[%emt 0:19:16]} dxc5 {[%emt 0:00:07]} 23. Qa3 {[%emt 0:00:07]} Qb7 {[%emt 0:04:45]} 24. e5 {[%emt 0:09:29]} Kc7 {[%emt 0:00:56]} 25. Be3 {[%emt 0:04:46] Black must now prevent Bxc5.} Bf8 {[%emt 0:01:32]} (25... Bxf3 26. Bxc5 Bf8 27. Bxf8 (27. gxf3 $2 Bxc5+ $19) (27. Rxb6 Qa8 $14) 27... Rxf8 28. gxf3 $16) 26. Kf2 {[%emt 0:02:27]} Rd7 {[%emt 0:05:34]} 27. Rb2 {[%emt 0:00:32]} Ra8 {[%emt 0:00:41]} 28. Qc3 {[%emt 0:00:09]} Qa6 {[%emt 0:01:50]} 29. Reb1 {[%emt 0:00:42] Hoping for Rxb6.} Qa5 {[%emt 0:00:13]} 30. Qb3 {[%emt 0:02:33]} (30. Qc4 $1 $11) 30... Ra6 {[%emt 0:04:48]} (30... b5 $15 31. c3 Qa4) 31. Qc4 {[%emt 0:03:42]} Qa4 $36 {[%emt 0:02:47][%mdl 2048] Black has the initiative.} 32. Qe2 {[%emt 0:00:04]} Bb7 {[%emt 0:00:30]} 33. Nd2 {[%emt 0:00:25]} Qc6 {[%emt 0:00:25]} (33... Bd5 $11) 34. Kg1 $14 {[%emt 0:00:31] Strongly threatening Nc4.} Ra4 {[%emt 0:00:43]} 35. c3 {[%emt 0:02:43] Prevents Rb4.} (35. Rxb6 $16 Qxb6 36. Rxb6 Kxb6 37. h3) 35... Ba6 $11 {[%emt 0:00:33]} 36. Qg4 {[%emt 0:00:20]} (36. Qf2 $11) 36... b5 $15 {[%emt 0:00:59] Active counter play!} 37. Kf2 {[%emt 0:00:49]} (37. Qe2 $15) 37... h5 {[%emt 0:00:17]} (37... Rd3 $142 38. Rc1 Bb7) 38. Qg5 {[%emt 0:00:23]} (38. Qe2 $17) 38... Be7 $19 {[%emt 0:00:45]} 39. Qg3 {[%emt 0:00:04]} h4 {[%emt 0:00:45]} 40. Qg4 {[%emt 0:00:00]} (40. Qf3 $142) 40... Qd5 {[%emt 0:00:00]} (40... Rd3 $19 41. Rc1 g5) 41. Nb3 {[%emt 0:02:07]} ({Don't blunder} 41. c4 $2 bxc4 42. f5 (42. Rb6 $2 c3 $19) 42... gxf5 $19) (41. Rc1 $17 {is a better defense.}) 41... Qc6 $2 {[%emt 0:13:56]} ({Better is} 41... Qc4 $19 42. Rc1 Rd3) 42. Qf3 $2 {[%emt 0:05:36]} (42. Nd2 $1 $11 {and White stays safe.}) 42... Qxf3+ {[%emt 0:01:05]} 43. gxf3 {[%emt 0:00:20]} Rd5 {[%emt 0:04:03]} (43... Kc6 $19 44. Nd2 Rd3) 44. Nd2 $17 {[%emt 0:01:39][%cal Bb3d2,Bd2e4,Be4d6][%mdl 32]} Rd3 {[%emt 0:01:53]} 45. Rc2 {[%emt 0:03:16]} (45. Ne4 $17 Kc6 46. Bd2) 45... Ra3 {[%emt 0:02:42]} 46. Ne4 {[%emt 0:00:12]} Kc6 {[%emt 0:00:39][%cal Ob5b4]} 47. Rbb2 $2 {[%emt 0:08:23] Inhibits b4.} (47. Bc1 $17 {might work better.} Ra4 48. Rbb2) 47... Ra1 $2 {[%emt 0:04:16]} ({Don't go for} 47... b4 $2 48. h3 $19) (47... h3 $19 {[%cal Ob5b4] is more deadly. aiming for ...b4!} 48. Ra2 b4 49. Bxc5 Bxc5+ 50. Nxc5 Kxc5 51. cxb4+ Kxb4 52. Rxa3 Rxa3) 48. Ra2 {[%emt 0:00:44] [#]} Rdd1 {[%emt 0:00:20]} 49. Rxa1 {[%emt 0:07:36]} Rxa1 {[%emt 0:00:05]} 50. Rd2 {[%emt 0:00:04]} Bc8 {[%emt 0:00:59]} 51. Nd6 {[%emt 0:00:28] Against h3} (51. Ng5 $17) 51... Be6 {[%emt 0:00:12]} 52. Rb2 {[%emt 0:00:35]} Ra2 {[%emt 0:02:44]} (52... Bxd6 $19 53. exd6 Ra3) 53. Rxa2 {[%emt 0:00:06]} Bxa2 {[%emt 0:00:06][%mdl 4096] Endgame KBB-KBN} 54. f5 {[%emt 0:06:55] [#]} (54. Bd2 $17) 54... gxf5 $1 $19 {[%emt 0:01:28]} 55. Nxf5 {[%emt 0:00:12]} Bd8 {[%emt 0:00:40]} 56. Ke2 {[%emt 0:00:54]} b4 {[%emt 0:01:58]} 57. cxb4 {[%emt 0:00:28]} (57. Kd2 {was called for.}) 57... cxb4 {[%emt 0:00:06]} 58. Kd2 {[%emt 0:00:04]} Kd5 {[%emt 0:00:52]} 59. Nd4 $2 {[%emt 0:00:39]} (59. Bf4) 59... Bb6 {[%emt 0:01:42]} (59... Kxe5 $2 60. Nc6+ Kf5 61. Nxd8 $18) 60. Nc2 {[%emt 0:00:13]} Bxe3+ {[%emt 0:00:08]} 61. Kxe3 {[%emt 0:00:08] KB-KN} b3 {[%emt 0:00:28]} ({And not} 61... Kxe5 62. Nxb4 Bc4 63. Nc6+ Kf5 64. Nd8 $11) 62. Nb4+ {[%emt 0:00:08]} Kxe5 {[%emt 0:00:36]} 63. Nd3+ {[%emt 0:00:11]} Kd5 {[%emt 0:00:34]} 64. Nb2 {[%emt 0:00:27]} Bb1 {[%emt 0:00:46]} 65. Kd2 {[%emt 0:00:43]} Kd4 {[%emt 0:00:37]} 66. Na4 {[%emt 0:00:12]} Bg6 {[%emt 0:00:42]} 67. Nb2 {[%emt 0:00:04]} Bh5 {[%emt 0:00:26]} 68. f4 {[%emt 0:00:33]} Bg6 {[%emt 0:00:13]} 69. Na4 {[%emt 0:00:11]} Bc2 {[%emt 0:00:43]} 70. Nc3 {[%emt 0:00:19]} Bf5 {[%emt 0:00:25] ( -> ...b2)} 71. Na4 {[%emt 0:00:04] Against b2} Be6 {[%emt 0:00:31] Threatens to win with ...f5.} 72. Nc3 {[%emt 0:00:10]} f6 {[%emt 0:00:23]} 73. Na4 {[%emt 0:00:04]} Bd5 {[%emt 0:00:40]} (73... Bg8 $142 74. Kd1 Ke4) 74. Nb6 {[%emt 0:00:29]} Bc6 {[%emt 0:00:32] Black mates.} 75. Nc8 {[%emt 0:00:19]} Be4 {[%emt 0:00:27]} 76. Na7 {[%emt 0:00:25]} b2 {[%emt 0:00:34]} 77. Nb5+ {[%emt 0:00:03]} Kc5 {[%emt 0:00:16]} 78. Nc3 {[%emt 0:00:03]} b1=Q {[%emt 0:00:13] Weighted Error Value: White=0.46/Black=0.30} 0-1

[Event "Hungarian Championship Women 2022"]
[Site "Budapest"]
[Date "2022.12.13"]
[Round "9.1"]
[White "Erdos, Boglarka"]
[Black "Terbe, Zsuzsanna"]
[Result "1-0"]
[ECO "B31"]
[WhiteElo "2180"]
[BlackElo "2114"]
[Annotator "TA"]
[PlyCount "111"]
[EventDate "2022.12.03"]
[EventType "tourn"]
[EventCountry "HUN"]
[SourceTitle "playchess.com"]
[Source "ChessBase"]
[SourceQuality "1"]
[TimeControl "40/5400+30:1800+30"]

{[%evp 17,111,0,0,0,19,9,9,0,6,0,0,0,6,0,37,0,43,-5,-2,-8,149,141,154,138,148,147,147,143,141,139,129,131,306,323,327,314,356,257,291,290,291,286,289,259,290,289,278,267,302,298,302,0,301,294,300,290,364,363,388,372,364,358,347,275,321,329,620,613,600,585,582,568,878,929,1618,1302,1030,1551,1377,1333,29962,29966,6207,6095,29955,6207,29985,29986,29987,29986,29988,29987,29989,29990,29990,29988]} 1. e4 {[%emt 0:00:33]} c5 {[%emt 0:00:36]} 2. Nf3 {[%emt 0:00:05]} Nc6 {[%emt 0:00:05]} 3. Bb5 {[%emt 0:00:08]} g6 {[%emt 0:00:06]} 4. c3 {[%emt 0:02:04]} Bg7 {[%emt 0:00:40]} 5. O-O {[%emt 0:00:13]} Nf6 {[%emt 0:01:38]} 6. Re1 {[%emt 0:00:40]} O-O {[%emt 0:00:32]} 7. d4 {[%emt 0:01:12]} d5 {[%emt 0:00:14]} 8. e5 {[%emt 0:00:32]} Ne4 {[%emt 0:00:24]} 9. Bxc6 {[%emt 0:03:03]} bxc6 {[%emt 0:00:18]} 10. Be3 $1 {[%emt 0:00:05][%mdl 4] is now more promising than 10.Nbd2. B31: Sicilian: 2...Nc6 3 Bb5 g6.} Qb6 {[%emt 0:07:18]} 11. Qc1 {[%emt 0:00:46]} c4 {[%emt 0:00:38]} 12. Nbd2 {[%emt 0:00:52] The position is equal.} Nxd2 {[%emt 0:00:30]} 13. Nxd2 {[%emt 0:00:15]} Bf5 {[%emt 0:00:07]} 14. b3 {[%emt 0:01:28]} Bd3 {[%emt 0:01:56] [#]} 15. h4 $146 {[%emt 0:02:28]} ({Predecessor:} 15. Qa3 Rfe8 16. Qa4 Qb5 17. Qxb5 cxb5 18. a4 b4 19. Rec1 Rec8 20. bxc4 dxc4 21. cxb4 {0-1 (50) Alekseev,E (2626)-Vokhidov,S (2512) Chess.com INT 2020}) 15... Qa5 {[%emt 0:07:10]} 16. Nf3 {[%emt 0:27:46]} f6 {[%emt 0:02:01]} 17. b4 {[%emt 0:12:28]} (17. Bf4 $14 {deserves consideration.}) 17... Qd8 {[%emt 0:07:51]} 18. Bh6 {[%emt 0:06:07]} Qc8 $2 {[%emt 0:07:34]} (18... a5 $11) 19. Bxg7 $16 {[%emt 0:09:28]} Kxg7 {[%emt 0:00:08]} 20. exf6+ {[%emt 0:00:15]} exf6 {[%emt 0:00:06]} 21. Re7+ {[%emt 0:00:46]} Rf7 {[%emt 0:00:11]} 22. Rxf7+ {[%emt 0:00:31]} Kxf7 {[%emt 0:00:02] [#]} 23. Qf4 $1 {[%emt 0:01:55]} Kg7 {[%emt 0:10:22] [#]} 24. Qd6 {[%emt 0:10:06] Re1 is the strong threat.} Qe8 {[%emt 0:12:12]} (24... Qd8 $16 25. Qxc6 Rc8) 25. Re1 $18 {[%emt 0:00:51]} Be4 {[%emt 0:00:06]} 26. Nd2 {[%emt 0:01:11] Strongly threatening f3.} Rd8 {[%emt 0:00:25] Inhibits f3.} 27. Qf4 {[%emt 0:04:14] Threatens to win with f3.} Qf7 {[%emt 0:01:09]} 28. Nxe4 {[%emt 0:00:23]} Re8 {[%emt 0:00:21] [#]} 29. Re3 $1 {[%emt 0:00:32] Black must now prevent Nd6.} dxe4 {[%emt 0:00:09]} 30. Rxe4 {[%emt 0:00:33]} Rxe4 {[%emt 0:00:05]} 31. Qxe4 {[%emt 0:00:03][%mdl 4096] Endgame KQ-KQ} Qd7 {[%emt 0:00:06]} 32. a4 {[%emt 0:03:43][%cal Ba2a4,Ba4a5][%mdl 32]} a6 {[%emt 0:00:35]} 33. Qe2 {[%emt 0:04:58]} Qf7 {[%emt 0:01:55]} 34. Qe4 {[%emt 0:00:37]} Qd7 {[%emt 0:00:07]} 35. a5 {[%emt 0:00:03]} Kf7 {[%emt 0:01:03]} 36. f3 {[%emt 0:05:25]} Qd6 {[%emt 0:02:21]} 37. h5 {[%emt 0:01:47]} Kg7 {[%emt 0:03:59]} 38. hxg6 {[%emt 0:00:26]} hxg6 {[%emt 0:00:02]} 39. Kf2 {[%emt 0:00:15]} Kf7 {[%emt 0:00:25]} 40. g3 {[%emt 0:00:00]} Qd7 {[%emt 0:00:00]} 41. Qf4 {[%emt 0:07:48]} Qh3 $2 {[%emt 0:06:04]} (41... Qd8 42. Qg4 Qe8) 42. Qc7+ {[%emt 0:04:02]} Kg8 {[%emt 0:01:34]} 43. Qxc6 {[%emt 0:01:27]} Qh2+ {[%emt 0:00:09]} 44. Ke3 {[%emt 0:00:33]} Qg1+ {[%emt 0:00:38]} 45. Ke4 {[%emt 0:04:34]} Qe1+ {[%emt 0:00:27]} 46. Kd5 {[%emt 0:04:15] Threatening mate with Qe6+.} Qxc3 {[%emt 0:00:18]} 47. Qxc4 {[%emt 0:06:36]} Qxf3+ {[%emt 0:00:08]} 48. Ke6 {[%emt 0:01:20] Qd5 would kill now.} Kg7 {[%emt 0:00:31]} 49. Qc7+ {[%emt 0:00:27]} Kh8 {[%emt 0:01:05]} 50. d5 {[%emt 0:03:42] White threatens Qf4 and mate.} Qf5+ {[%emt 0:01:25]} 51. Ke7 {[%emt 0:00:38] White wants to mate with Kf8.} Kg7 {[%emt 0:02:15]} 52. Ke8+ {[%emt 0:00:57] White mates.} Kg8 {[%emt 0:00:04]} 53. Qf7+ {[%emt 0:00:38]} Kh8 {[%emt 0:00:02]} 54. Qe6 {[%emt 0:00:15]} Qg5 {[%emt 0:00:56]} 55. Kf7 {[%emt 0:00:29]} Kh7 {[%emt 0:00:15]} 56. Qh3+ {[%emt 0:00:07] Weighted Error Value: White=0.14 (very precise) /Black=0.66} 1-0